Cogmind - Beta 14 @@@ ROGUE MODE // 2024.08.17 @ 05:40:51 Player: K.Ioz Result: Destroyed by H-66 Slayer with Heavy Assault Rifle Performance ------------- Evolutions (4) 2000 Regions Visited (11) 2200 Robots Destroyed (24) 120 Value Destroyed (557) 557 Prototype IDs (12) 240 Alien Tech Used (0) 0 Bonus (600) 600 TOTAL SCORE: 5717 Bonus ------- Entered Garrisons 600 Cogmind --------- Core Integrity 0/850 Matter 275/300 Energy 75/100 System Corruption 1% Temperature Cool (0) Movement Core (50) Location -6/Garrison Parts ------- > --- POWER (2) -------- (None) > --- PROPULSION (3) --- (None) > --- UTILITY (8) ------ Advanced Signal Interpreter ECM Suite > --- WEAPON (2) ------- (None) > --- INVENTORY (5) ---- Cooling System Improved Cooling System Energy Well (236) Peak State ------------ > --- POWER ------------ Light Nuclear Core Light Fission Core > --- PROPULSION ------- Improved VTOL Module Improved VTOL Module Xenon Bombardment Thruster > --- UTILITY ---------- Advanced Heat Sink Advanced Weight Redist. System Improved Sensor Array Advanced Signal Interpreter ECM Suite Improved Propulsion Shielding Improved Light Armor Plating Hacking Suite > --- WEAPON ----------- Spear > --- INVENTORY -------- Improved Deuterium Engine Cesium-ion Thruster Cooling System Improved Cooling System ECM Suite [Rating: 51] Favorites ----------- Power Light Ion Engine Engine Light Ion Engine Power Core Micro Nuclear Core Propulsion Improved VTOL Module Leg Aluminum Leg Wheel Wheel Flight Unit Improved VTOL Module Utility Hacking Suite Device Heat Sink Storage Small Storage Unit Processor Advanced Signal Interpreter Hackware Hacking Suite Protection Improved Propulsion Shielding Weapon Small Laser Energy Gun Small Laser Energy Cannon Beam Cannon Ballistic Gun Assault Rifle Ballistic Cannon Mini Assault Cannon Launcher Grenade Launcher Piercing Weapon Spear Build | -11 -10 -9 -9 -8 -8 -8 -7 -6 -6 -6 -6 ------- Run | Yrd Mat Mat Min Mat Gar Mat Fac Fac Gar Fac Gar Slots Evolved 8 | . . 2 . 2 . . 2 2 . . . Power 1 | . . . . . . . 1 . . . . Propulsion 1 | . . . . . . . 1 . . . . Utility 6 | . . 2 . 2 . . . 2 . . . Weapon . | . . . . . . . . . . . . Parts Attached 62 | 5 18 1 2 4 3 7 10 4 . 4 4 Power 10 | 1 3 . . . . 2 1 2 . . 1 Engine 7 | 1 3 . . . . 1 1 . . . 1 Core 3 | . . . . . . 1 . 2 . . . Reactor . | . . . . . . . . . . . . Propulsion 17 | 1 6 1 . 3 . 4 1 . . . 1 Treads . | . . . . . . . . . . . . Leg 4 | . 4 . . . . . . . . . . Wheel 1 | 1 . . . . . . . . . . . Hover . | . . . . . . . . . . . . Flight 12 | . 2 1 . 3 . 4 1 . . . 1 Utility 21 | 1 2 . 2 1 . 1 6 2 . 4 2 Device 12 | . 2 . 2 . . . 3 2 . 2 1 Storage 2 | 1 . . . . . . . . . . 1 Processor 2 | . . . . . . . 1 . . 1 . Hackware 2 | . . . . 1 . 1 . . . . . Protection 3 | . . . . . . . 2 . . 1 . Artifact . | . . . . . . . . . . . . Weapon 14 | 2 7 . . . 3 . 2 . . . . Energy Gun 4 | 1 2 . . . 1 . . . . . . Energy Cannon 1 | . 1 . . . . . . . . . . Ballistic Gun 3 | 1 2 . . . . . . . . . . Ballistic Cannon 1 | . . . . . . . 1 . . . . Launcher 4 | . 2 . . . 2 . . . . . . Special Weapon . | . . . . . . . . . . . . Impact Weapon . | . . . . . . . . . . . . Slashing Weapon . | . . . . . . . . . . . . Piercing Weapon 1 | . . . . . . . 1 . . . . Special Melee Weapon . | . . . . . . . . . . . . Unidentified Prototypes 3 | . . . 1 1 . . 1 . . . . Parts Lost 29 | . 2 . 3 1 5 1 1 1 1 . 14 Power 5 | . . . 1 . . . . 1 . . 3 Propulsion 8 | . . . 2 . 1 1 . . . . 4 Utility 10 | . . . . 1 1 . 1 . 1 . 6 Weapon 6 | . 2 . . . 3 . . . . . 1 Highest Loss Streak 14 | . 1 . 3 1 5 1 1 1 1 . 14 To Critical Strikes 1 | . 1 . . . . . . . . . . Average Slot Usage (%) 76 | . 85 66 73 45 48 40 79 80 78 88 62 Engine 7 | . 13 11 11 . . 3 3 4 . . 2 Core 3 | . . . . . . 4 7 7 13 13 4 Leg 6 | . 14 . . . . . . . . . . Wheel 1 | . 4 . . . . . . . . . . Flight 12 | . 5 22 22 14 18 16 22 20 20 20 16 Device 12 | . 9 22 29 17 7 . 10 20 20 24 15 Storage 5 | . 11 . . . . . . . . . . Hackware 4 | . . . . 4 9 15 13 6 6 6 5 Protection 3 | . . . . . . . 11 13 11 12 5 Energy Gun 8 | . 14 11 11 9 12 . . . . . . Ballistic Gun 4 | . 9 . . . . . . . . . . Piercing Weapon 1 | . . . . . . . 5 6 6 6 4 Peak Build Rating 51 | 5 7 7 21 15 14 18 45 48 43 51 51 Average Rating 18 | 3 6 6 15 10 13 14 35 43 42 48 34 On Entrance 19 | . 5 6 7 3 14 4 18 37 43 40 51 Naked Turns . | . . . . . . . . . . . . Heaviest Build 23 | 12 15 6 6 3 3 7 21 23 23 23 23 Greatest Support 25 | 10 20 8 8 10 10 10 25 25 25 25 25 Greatest Overweight (x) 4 | 1 4 . 1 . . 1 . . . . . Average Overweight (x) . | . . . . . . . . . . . . Largest Inventory Capacity 8 | 8 8 5 5 5 5 5 5 5 5 5 5 Average Capacity 6 | 6 7 5 5 5 5 5 5 5 5 5 5 Most Carried 8 | 5 8 5 5 5 5 5 5 5 5 5 5 Average Carried 5 | 2 6 5 5 4 4 3 4 4 5 5 3 Final Capacity 8 | 8 5 5 5 5 5 5 5 5 5 5 5 Final Carried 5 | 5 5 5 5 5 4 5 5 5 5 5 3 Class Distribution -------------------- 39% | Mutant 23% | Sprinter 19% | Scavenger-Mutant 17% | Hacker-Sprinter Dominant Class ---------------- Mutant | -10/Materials Scavenger-Mutant | -9/Materials Scavenger-Mutant | -9/Mines Mutant | -8/Materials Sprinter | -8/Garrison Hacker-Sprinter | -8/Materials Hacker-Sprinter | -7/Factory Sprinter | -6/Factory Sprinter | -6/Garrison Sprinter | -6/Factory Sprinter | -6/Garrison Resources | -11 -10 -9 -9 -8 -8 -8 -7 -6 -6 -6 -6 ----------- Run | Yrd Mat Mat Min Mat Gar Mat Fac Fac Gar Fac Gar Matter Collected 815 | 221 328 . 26 10 . . 230 . . . . Remotely . | . . . . . . . . . . . . Salvage Created 597 | . 566 . . . 31 . . . . . . Parts 43 | . 37 . . . 6 . . . . . . Haulers Intercepted . | . . . . . . . . . . . . Recyclers Shooed . | . . . . . . . . . . . . Parts Field Recycled . | . . . . . . . . . . . . Retrieved Matter . | . . . . . . . . . . . . Parts Self-Destructed . | . . . . . . . . . . . . Prevented . | . . . . . . . . . . . . Kills | -11 -10 -9 -9 -8 -8 -8 -7 -6 -6 -6 -6 ------- Run | Yrd Mat Mat Min Mat Gar Mat Fac Fac Gar Fac Gar Combat Hostiles Destroyed 21 | . 18 . . . 3 . . . . . . Guns 10 | . 10 . . . . . . . . . . Cannons 3 | . 3 . . . . . . . . . . AOE 8 | . 5 . . . 3 . . . . . . Classes Destroyed 4 | . 4 . . . . . . . . . . Worker 1 | . 1 . . . . . . . . . . Watcher 2 | . 2 . . . . . . . . . . Swarmer 9 | . 6 . . . 3 . . . . . . Grunt 12 | . 12 . . . . . . . . . . Best Kill Streak 8 | . 8 . . . 3 . . . . . . Combat Bots Only 6 | . 6 . . . 3 . . . . . . Max Kills in Single Turn 3 | . 3 . . . 2 . . . . . . Gunslinging . | . . . . . . . . . . . . Exploded 2 | . 2 . . . 2 . . . . . . Melee . | . . . . . . . . . . . . Uniques/NPCs Destroyed . | . . . . . . . . . . . . Combat | -11 -10 -9 -9 -8 -8 -8 -7 -6 -6 -6 -6 -------- Run | Yrd Mat Mat Min Mat Gar Mat Fac Fac Gar Fac Gar Hostile Shots Fired 516 | . 72 7 3 6 77 49 72 19 14 15 182 Missed 258 | . 22 3 . 5 35 29 50 11 9 10 84 Damage Taken 3324 | . 553 47 126 13 439 186 228 130 84 78 1440 Core 1405 | . 114 . 69 . 177 77 115 17 54 . 782 Absorbed by Shields 197 | . . . . . 95 . . . . . 102 Redirected to Shielding 110 | . . . . . . . 5 9 . 8 88 Ignored by Resistances 21 | . . . . . . . 12 . 9 . . Core Remaining (%) 74 | 100 54 . 82 . . 53 83 . . . . Volleys Fired 56 | . 49 . . . 7 . . . . . . Largest 2 | . 2 . . . 2 . . . . . . Hottest 100 | . 100 . . . 80 . . . . . . Shots Fired 106 | . 96 . . . 10 . . . . . . Gun 90 | . 84 . . . 6 . . . . . . Cannon 9 | . 9 . . . . . . . . . . Launcher 7 | . 3 . . . 4 . . . . . . Special . | . . . . . . . . . . . . Kinetic 33 | . 33 . . . . . . . . . . Thermal 46 | . 40 . . . 6 . . . . . . Explosive 7 | . 3 . . . 4 . . . . . . Electromagnetic 20 | . 20 . . . . . . . . . . Robot Hit Streak 13 | . 13 . . . 11 . . . . . . Robot Miss Streak 4 | . 4 . . . 2 . . . . . . Penetration Max . | . . . . . . . . . . . . Secondary Targets . | . . . . . . . . . . . . Shots Hit Robots 79 | . 71 . . . 7 . 1 . . . . Core Hits 41 | . 35 . . . 4 . . . . . 2 Critical Kills . | . . . . . . . . . . . . Critical Parts Destroyed . | . . . . . . . . . . . . Critical Strikes . | . . . . . . . . . . . . Melee Attacks 1 | . . . . . . . 1 . . . . Impact . | . . . . . . . . . . . . Slashing . | . . . . . . . . . . . . Piercing 1 | . . . . . . . 1 . . . . Sneak Attacks 1 | . . . . . . . 1 . . . . Combat Hostiles . | . . . . . . . . . . . . Follow-up Attacks . | . . . . . . . . . . . . Damage Inflicted 1773 | . 1378 . . . 304 . 64 . . . 27 Guns 865 | . 803 . . . 62 . . . . . . Cannons 106 | . 106 . . . . . . . . . . Explosions 711 | . 469 . . . 242 . . . . . . Melee 64 | . . . . . . . 64 . . . . Ramming 27 | . . . . . . . . . . . 27 Kinetic 313 | . 313 . . . . . . . . . . Thermal 531 | . 469 . . . 62 . . . . . . Explosive 602 | . 360 . . . 242 . . . . . . Electromagnetic 236 | . 236 . . . . . . . . . . Impact . | . . . . . . . . . . . . Slashing . | . . . . . . . . . . . . Piercing 64 | . . . . . . . 64 . . . . Highest Corruption 1 | . . . . . . . 1 . . . 1 Average Corruption 1 | . . . . . . . 1 . . . 1 Corruption Purged . | . . . . . . . . . . . . Corruption Blocked . | . . . . . . . . . . . . Effects 1 | . . . . . . . 1 . . . . Energy Discharges 1 | . . . . . . . 1 . . . . Overload Shots . | . . . . . . . . . . . . Overflow Damage 40 | . 6 . . . . . 34 . . . . Projectiles . | . . . . . . . . . . . . Explosions 6 | . 6 . . . . . . . . . . Melee 34 | . . . . . . . 34 . . . . Knockbacks . | . . . . . . . . . . . . Impact . | . . . . . . . . . . . . Kinetic . | . . . . . . . . . . . . Secondary . | . . . . . . . . . . . . Self-Inflicted Damage 44 | . . . . . 32 . . . . . 12 Shots 1 | . . . . . 1 . . . . . . Rammed 5 | . . . . . . . . . . . 5 Targets Rammed 5 | . . . . . . . . . . . 5 Kicked . | . . . . . . . . . . . . Crushed . | . . . . . . . . . . . . Highest Temperature 81 | . 81 . . . 30 9 7 . . . . Average Temperature 28 | . 30 . . . 15 9 3 . . . . Received Heat Transfer 584 | . 255 27 . . 123 27 42 . 39 9 62 Siege Activations . | . . . . . . . . . . . . Robots Corrupted . | . . . . . . . . . . . . Combat Hostiles . | . . . . . . . . . . . . Parts Fried 1 | . 1 . . . . . . . . . . Impact Corruptions . | . . . . . . . . . . . . Robots Melted . | . . . . . . . . . . . . Combat Hostiles . | . . . . . . . . . . . . Parts Melted . | . . . . . . . . . . . . Heat Transferred 1097 | . 947 . . . 150 . . . . . . Parts Sabotaged . | . . . . . . . . . . . . Parts Stolen . | . . . . . . . . . . . . Parts Stripped . | . . . . . . . . . . . . Power Chain Reactions 2 | . 2 . . . . . . . . . . Alert | -11 -10 -9 -9 -8 -8 -8 -7 -6 -6 -6 -6 ------- Run | Yrd Mat Mat Min Mat Gar Mat Fac Fac Gar Fac Gar Peak Influence 448 | . 261 160 62 64 420 448 233 78 69 103 94 Initial 204 | . . 109 62 12 35 204 203 12 54 30 72 Average 119 | . 144 137 61 26 174 232 100 53 57 67 63 Maximum Alert Level 2 | . 1 . . . 2 2 1 . . . . Low Security (%) 79 | 100 76 100 100 100 47 44 71 100 100 100 100 Level 1 19 | . 23 . . . 49 43 28 . . . . Level 2 . | . . . . . 2 11 . . . . . Level 3 . | . . . . . . . . . . . . Level 4 . | . . . . . . . . . . . . Level 5 . | . . . . . . . . . . . . High Security . | . . . . . . . . . . . . Max Security . | . . . . . . . . . . . . Squads Dispatched 19 | . 5 2 . 1 . 5 4 1 . 1 . Investigation 9 | . 2 . . . . 2 3 1 . 1 . Extermination 1 | . . . . . . . 1 . . . . Reinforcement 9 | . 3 2 . 1 . 3 . . . . . Assault . | . . . . . . . . . . . . Garrison . | . . . . . . . . . . . . Intercept . | . . . . . . . . . . . . Searches Triggered . | . . . . . . . . . . . . Construction Impeded . | . . . . . . . . . . . . Haulers Reinforced . | . . . . . . . . . . . . Active Scanning Responses . | . . . . . . . . . . . . Cargo Convoy Interrupts . | . . . . . . . . . . . . Stealth | -11 -10 -9 -9 -8 -8 -8 -7 -6 -6 -6 -6 --------- Run | Yrd Mat Mat Min Mat Gar Mat Fac Fac Gar Fac Gar Distress Signals 9 | . 3 1 . 1 . 2 . 2 . . . Communications Jammed . | . . . . . . . . . . . . Distress Signals . | . . . . . . . . . . . . Times Spotted 171 | . 26 11 2 4 28 23 15 6 12 14 30 Peak Tracking Total 18 | . 5 9 2 5 17 10 4 3 9 7 18 Tactical Retreats 26 | . 2 . . 1 4 5 4 2 2 2 4 Traps | -11 -10 -9 -9 -8 -8 -8 -7 -6 -6 -6 -6 ------- Run | Yrd Mat Mat Min Mat Gar Mat Fac Fac Gar Fac Gar Traps Triggered 13 | . 1 . . . 2 2 2 . 2 1 3 Indirectly . | . . . . . . . . . . . . Trap Hack Attempts . | . . . . . . . . . . . . Triggered . | . . . . . . . . . . . . Disarmed . | . . . . . . . . . . . . Reprogrammed . | . . . . . . . . . . . . Reused . | . . . . . . . . . . . . Traps Extracted . | . . . . . . . . . . . . Installed . | . . . . . . . . . . . . Triggered . | . . . . . . . . . . . . Machines | -11 -10 -9 -9 -8 -8 -8 -7 -6 -6 -6 -6 ---------- Run | Yrd Mat Mat Min Mat Gar Mat Fac Fac Gar Fac Gar Machines Disabled . | . . . . . . . . . . . . Max in Single Turn . | . . . . . . . . . . . . Machines Repaired . | . . . . . . . . . . . . Machines Dismantled . | . . . . . . . . . . . . Machines Sabotaged . | . . . . . . . . . . . . Overloaded Fab Kills . | . . . . . . . . . . . . Hacking | -11 -10 -9 -9 -8 -8 -8 -7 -6 -6 -6 -6 --------- Run | Yrd Mat Mat Min Mat Gar Mat Fac Fac Gar Fac Gar Machines Accessed 44 | . 6 2 1 3 1 7 10 5 1 7 1 Terminals 30 | . 3 1 . 2 1 7 6 2 1 6 1 Fabricators 4 | . . . . . . . 2 2 . . . Repair Stations 2 | . 1 . . . . . 1 . . . . Recycling Units 3 | . 2 1 . . . . . . . . . Scanalyzers . | . . . . . . . . . . . . Garrison Access 4 | . . . . 1 . . 1 1 . 1 . Total Hacks 88 | . 15 3 1 5 3 13 26 7 2 12 1 Successful 39 | . 7 2 1 3 . 9 8 4 . 4 1 Failed 49 | . 8 1 . 2 3 4 18 3 2 8 . Catastrophic 9 | . 3 . . . . 1 . 2 . 3 . Database Lockouts . | . . . . . . . . . . . . Manual 16 | . 2 2 . 1 . 4 4 1 . 2 . Terminals 65 | . 10 2 . 4 3 13 17 2 2 11 1 Fabricators 10 | . . . . . . . 6 4 . . . Repair Stations 2 | . 1 . . . . . 1 . . . . Recycling Units 5 | . 4 1 . . . . . . . . . Scanalyzers . | . . . . . . . . . . . . Garrison Access 5 | . . . . 1 . . 2 1 . 1 . Terminal Hacks 26 | . 3 . 1 2 . 9 6 1 . 3 1 Record 1 | . . . . . . 1 . . . . . Part Schematic 4 | . . . . 1 . 1 2 . . . . Robot Schematic 1 | . . . . . . . 1 . . . . Robot Analysis 1 | . 1 . . . . . . . . . . Prototype ID Bank 4 | . 2 . . . . . 1 . . 1 . Open Door 1 | . . . 1 . . . . . . . . Open DSF 2 | . . . . . . . . 1 . 1 . Branch Access Points 1 | . . . . . . 1 . . . . . Emergency Access Points 2 | . . . . . . 1 . . . . 1 Machine Index 1 | . . . . . . . . . . 1 . Alert Level 1 | . . . . . . 1 . . . . . Unreport Threat 3 | . . . . . . 1 2 . . . . Locate Traps 2 | . . . . 1 . 1 . . . . . Registered Components 1 | . . . . . . 1 . . . . . Zone Layout 1 | . . . . . . 1 . . . . . Fabricator Hacks 4 | . . . . . . . 2 2 . . . Load Schematic 3 | . . . . . . . 2 1 . . . Build 1 | . . . . . . . . 1 . . . Repair Station Hacks . | . . . . . . . . . . . . Recycling Unit Hacks 5 | . 4 1 . . . . . . . . . Process 1 | . 1 . . . . . . . . . . Report Inventory 4 | . 3 1 . . . . . . . . . Scanalyzer . | . . . . . . . . . . . . Garrison Access Hacks 3 | . . . . 1 . . . 1 . 1 . Unlock Access 3 | . . . . 1 . . . 1 . 1 . Unauthorized Hacks 1 | . . 1 . . . . . . . . . Terminals 1 | . . 1 . . . . . . . . . Assimilate 1 | . . 1 . . . . . . . . . Fabricators . | . . . . . . . . . . . . Repair Stations . | . . . . . . . . . . . . Recycling Units . | . . . . . . . . . . . . Scanalyzers . | . . . . . . . . . . . . Garrison Access . | . . . . . . . . . . . . Data Cores Recovered . | . . . . . . . . . . . . Used . | . . . . . . . . . . . . Hacking Detections 32 | . 3 2 . 2 1 5 10 2 1 6 . Full Trace Events 8 | . 1 . . . 1 1 3 1 . 1 . Feedback Events . | . . . . . . . . . . . . Feedback Blocked . | . . . . . . . . . . . . Robot Schematics Acquired 1 | . . . . . . . 1 . . . . Robots Built 2 | . . . . . . . . 2 . . . Authchips . | . . . . . . . . . . . . Time 81 | . . . . . . . . 81 . . . Total Robot Build Rating 2 | . . . . . . . . 2 . . . Part Schematics Acquired 4 | . . . . 1 . 1 2 . . . . Parts Built . | . . . . . . . . . . . . Authchips . | . . . . . . . . . . . . Time . | . . . . . . . . . . . . Total Part Build Rating . | . . . . . . . . . . . . Parts Repaired . | . . . . . . . . . . . . Time . | . . . . . . . . . . . . Parts Recycled . | . . . . . . . . . . . . Recycled Matter 147 | . 147 . . . . . . . . . . Retrieved Matter . | . . . . . . . . . . . . Retrieved Components . | . . . . . . . . . . . . Parts Scanalyzed . | . . . . . . . . . . . . Part Schematics Acquired . | . . . . . . . . . . . . Parts Damaged . | . . . . . . . . . . . . Bothacking | -11 -10 -9 -9 -8 -8 -8 -7 -6 -6 -6 -6 ------------ Run | Yrd Mat Mat Min Mat Gar Mat Fac Fac Gar Fac Gar Used RIF Installer . | . . . . . . . . . . . . Robots Hacked . | . . . . . . . . . . . . Non-combat . | . . . . . . . . . . . . Combat . | . . . . . . . . . . . . Robot Hacks Applied . | . . . . . . . . . . . . Relay Couplers Released . | . . . . . . . . . . . . Fabnet Peak Effective % . | . . . . . . . . . . . . Robots Rewired . | . . . . . . . . . . . . Allies Hacked . | . . . . . . . . . . . . Hacks Repelled . | . . . . . . . . . . . . Allies | -11 -10 -9 -9 -8 -8 -8 -7 -6 -6 -6 -6 -------- Run | Yrd Mat Mat Min Mat Gar Mat Fac Fac Gar Fac Gar Total Allies 2 | . . . . . . . . 2 . . . Largest Group 2 | . . . . . . . . 2 . . . Highest-Rated Group 16 | . . . . . . . . 16 . . . Highest-Rated Ally 8 | . . . . . . . . 8 . . . Total Orders 2 | . . . 1 . . . . 1 . . . ROAM 2 | . . . 1 . . . . 1 . . . Ally Attacks . | . . . . . . . . . . . . Total Damage . | . . . . . . . . . . . . Kills . | . . . . . . . . . . . . Allies Corrupted . | . . . . . . . . . . . . Allies Melted . | . . . . . . . . . . . . Intel | -11 -10 -9 -9 -8 -8 -8 -7 -6 -6 -6 -6 ------- Run | Yrd Mat Mat Min Mat Gar Mat Fac Fac Gar Fac Gar Robot Analysis Total 1 | . 1 . . . . . . . . . . Derelict Logs Recovered 1 | . . . 1 . . . . . . . . Drone Launches 18 | . . . 16 . . . . 2 . . . Drone Recoveries . | . . . . . . . . . . . . Exploration | -11 -10 -9 -9 -8 -8 -8 -7 -6 -6 -6 -6 ------------- Run | Yrd Mat Mat Min Mat Gar Mat Fac Fac Gar Fac Gar Turns Passed 2663 | 57 1178 54 77 95 147 167 369 153 89 161 116 Spaces Moved 4666 | 55 988 108 74 231 299 460 1114 405 175 485 272 Core 45 | 9 1 . 3 . 10 3 . . . . 19 Treads . | . . . . . . . . . . . . Legs 344 | . 344 . . . . . . . . . . Wheels 137 | 46 91 . . . . . . . . . . Hover . | . . . . . . . . . . . . Flight 4140 | . 552 108 71 231 289 457 1114 405 175 485 253 Fastest Speed 29 | 50 37 34 34 32 32 32 30 30 30 30 29 Average Speed 40 | 81 71 35 36 36 33 33 30 30 30 30 31 Slowest Speed 250 | 95 250 37 100 40 50 105 32 30 30 30 50 Overloaded Moves . | . . . . . . . . . . . . Propulsion Burnouts . | . . . . . . . . . . . . Robots Hopped 58 | . 10 3 1 2 1 18 10 4 1 1 7 Cave-ins Triggered . | . . . . . . . . . . . . Exploration Rate (%) 35 | 4 97 18 51 23 40 57 30 18 39 12 35 Regions Visited 11 Branch Regions 1 Pre-discovered Areas . | . . . . . . . . . . . . Known Exits Taken 4 | . . . . 1 . 1 . 1 . 1 . Unknown Exits Taken 5 | 1 1 1 1 . . . 1 . . . . Scrap Searched . | . . . . . . . . . . . . Spaces Dug . | . . . . . . . . . . . . Terrain Destroyed 53 | . 25 . . . 28 . . . . . . Melee . | . . . . . . . . . . . . Projectile . | . . . . . . . . . . . . AOE 53 | . 25 . . . 28 . . . . . . Terrain Rammed . | . . . . . . . . . . . . Walls Destroyed . | . . . . . . . . . . . . Machines Disabled . | . . . . . . . . . . . . Actions | -11 -10 -9 -9 -8 -8 -8 -7 -6 -6 -6 -6 --------- Run | Yrd Mat Mat Min Mat Gar Mat Fac Fac Gar Fac Gar Total 5250 | 64 1354 121 122 239 333 453 1134 431 209 497 293 Wait 389 | . 272 13 46 3 14 . 9 25 . 7 . Move 4538 | 54 968 101 71 226 294 424 1093 396 172 482 257 Hop 55 | . 9 3 1 2 1 17 10 4 1 1 6 Pick Up 38 | 5 18 1 . 2 . 5 6 . . 1 . Fast Attach 30 | 5 5 . 2 2 . 2 6 3 . 4 1 Attach 19 | . 5 . . 1 2 4 3 1 . . 3 Detach 5 | . 1 . . . 1 . 1 1 . . 1 Swap 13 | . 8 1 . 1 1 1 1 . . . . Drop 32 | . 19 2 2 2 . . 4 1 . 2 . Fire 56 | . 49 . . . 7 . . . . . . Melee 1 | . . . . . . . 1 . . . . Ram 5 | . . . . . . . . . . . 5 Kick . | . . . . . . . . . . . . Crush . | . . . . . . . . . . . . Escape Stasis 69 | . . . . . 13 . . . 36 . 20 Rewire . | . . . . . . . . . . . . Trap . | . . . . . . . . . . . . Miscellaneous . | . . . . . . . . . . . . Route ------- -11/Scrapyard -10/Materials (discovered 4 exits: *Mat x3 / [*Min]) -9/Materials -9/Mines -8/Materials (discovered 2 exits: Fac / Gar) -8/Garrison (discovered 2 exits: *Mat x2) -8/Materials -7/Factory (discovered 2 exits: *Fac / [*Sto]) -6/Factory -6/Garrison -6/Factory (discovered 2 exits: [*Fac] / Gar) -6/Garrison (discovered 2 exits: *Fac x2) History --------- Turn | Location | Event 2 | -11/Scrapyard | Met Revision 17 13 | -11/Scrapyard | Discovered new exit (range 15) 58 | -11/Scrapyard | Entered Materials 306 | -10/Materials | Build established: Mutant 545 | -10/Materials | Discovered new exit (range 12) 629 | -10/Materials | Discovered new exit (range 16) 852 | -10/Materials | Discovered new exit (range 16) 1075 | -10/Materials | Discovered new exit (range 16) 1151 | -10/Materials | Build established: Scavenger-Mutant 1236 | -10/Materials | Entered another Materials area 1236 | -9/Materials | Evolved 2 slots: Utility x2 1286 | -9/Materials | Discovered new exit (range 11) 1290 | -9/Materials | Entered Mines 1293 | -9/Mines | Found the Drone Emporium 1293 | -9/Mines | Found Prototype Device 1293 | -9/Mines | Identified Decoy Drone Bay 1352 | -9/Mines | Lost 5 allies 1361 | -9/Mines | Assembled infested the area 1363 | -9/Mines | Discovered new exit (range 8) 1367 | -9/Mines | Entered Materials 1367 | -8/Materials | Evolved 2 slots: Utility x2 1368 | -8/Materials | Identified exit to Factory 1397 | -8/Materials | Lost 3 parts (1p2n) 1462 | -8/Materials | Identified exit to Garrison 1462 | -8/Materials | Entered Garrison 1542 | -8/Garrison | Discovered new exit (range 10) 1560 | -8/Garrison | Attempted to access garrison exit controls, blocked by remote lockdown 1581 | -8/Garrison | Triggered checkpoint 1582 | -8/Garrison | Triggered checkpoint 1606 | -8/Garrison | Discovered new exit (range 8) 1609 | -8/Garrison | Entered Materials 1634 | -8/Materials | Lost 5 parts (1n1u3w) 1762 | -8/Materials | Discovered exit to Factory (range 15) 1776 | -8/Materials | Entered Factory 1776 | -7/Factory | Evolved 2 slots: Power x1, Propulsion x1 1891 | -7/Factory | Build established: Hacker-Sprinter 1925 | -7/Factory | Discovered new exit (range 4) 2128 | -7/Factory | Discovered new exit (range 12) 2145 | -7/Factory | Entered another Factory area 2145 | -6/Factory | Evolved 2 slots: Utility x2 2149 | -6/Factory | Identified exit to DSF 2263 | -6/Factory | Fabricated R-06 Scavenger? 2266 | -6/Factory | Identified exit to Garrison 2298 | -6/Factory | Entered Garrison 2354 | -6/Garrison | Triggered checkpoint 2374 | -6/Garrison | Discovered new exit (range 10) 2382 | -6/Garrison | Triggered checkpoint 2387 | -6/Garrison | Entered Factory 2391 | -6/Factory | Identified exit to DSF 2515 | -6/Factory | Discovered new exit (range 12) 2547 | -6/Factory | Identified exit to Garrison 2548 | -6/Factory | Entered Garrison 2559 | -6/Garrison | Spotted B-75 Beast 2572 | -6/Garrison | Triggered checkpoint 2601 | -6/Garrison | Discovered new exit (range 8) 2603 | -6/Garrison | Identified exit to Factory 2603 | -6/Garrison | Attempted to access garrison exit controls, blocked by remote lockdown 2609 | -6/Garrison | Build established: Sprinter 2612 | -6/Garrison | Triggered checkpoint 2634 | -6/Garrison | Discovered exit to Factory (range 15) 2639 | -6/Garrison | Attempted to access garrison exit controls, blocked by remote lockdown 2656 | -6/Garrison | Core integrity fell below 50% 2663 | -6/Garrison | Core integrity fell below 20% 2664 | -6/Garrison | Triggered checkpoint 2664 | -6/Garrison | Destroyed by H-66 Slayer with Heavy Assault Rifle Last Messages --------------- 02646_ P-60 Hacker resets P-60 Hacker, system corruption cleaned. 02648_ Imp. VTOL Module destroyed. 02649_ Extracted 94 energy. 02650_ Acquired Energy Well. 02653_ Slammed into S-27 Virus. 02661_ Penetrated by Slug. 02661_ Slammed into P-60 Hacker. 02661_ Adv. Signal Interpreter broken. 02661_ Destabilizing: Short circuit. 02662_ Slammed into P-60 Hacker. 02663_ P-60 Hacker resets P-60 Hacker, system corruption cleaned. 02663_ Penetrated by Slug. 02663_ Slammed into P-60 Hacker. 02663_ Destabilizing: System corrupted (+1). 02664_ Beams of light sweep through the air. An alarm sounds. 02664_ Penetrated by Slug. 02664_ Slug penetrates P-60 Hacker. Map ----- +----------------------------------------------------+ | ?????????????????????????????????????????????????? | | ?????????????????????????????????????????????????? | | ?????????????????????????????????????????????????? | | ?????????????????????????????????????????????????? | | ?????????????????????????????????????????????????? | | ?????????????????????????????????????????????????? | | ?????????????????????????????????????????????????? | | ?????????????????##????####??????????????????????? | | ????????????????? ????# #??????????????????????? | | ????????????????? +???+ ###????????????????????? | | ????????????????# ????# #"#????????????????????? | | ???????????????? ????# "#????????????????????? | | ???????????????? ????# "#????????????????????? | | ???????????????? ????# "?????????????????????? | | ????????????????# #???# #??????????????????????? | | ????????????????# #???# #??????????????????????? | | ????????????????# #???# #??????????????????????? | | ????????????????# #???# #??????????????????????? | | ????????????????# #???#s #?#####????????????????? | | ??????????????### #???# ### !!#????????????????? | | ??????????????? #???# +????????????????? | | ????????????????# #???#ps#######????????????????? | | ????????????????# #???# l#??????????????????????? | | ????????????????# #???#s #??????????????????????? | | ????????????????# #???#h #??????????????????????? | | ????????????????# #???# @#??????????????????????? | | ????????????????" #???#gpY ?????????????????????? | | ??????????????+?" +???+ +????????????????????? | | ????????????????" #???#s #?????????#####??????? | | ????????????????# #???# ###?????????# #??????? | | ??????###+####### #####h #######+##### < #??????? | | ??????# #??????? | | ??????# #??????? | | ??????# #??????? | | ??????# ###T###++########################??????? | | ??????# #?###??????????????????????????????????? | | ??????# #??????????????????????????????????????? | | ??????# #??????????????????????????????????????? | | ??????# +??????????????????????????????????????? | | ?+????# #??????????????????????????????????????? | | ??????# #??????????????????????????????????????? | | #""""## #??????????????????????????????????????? | | #??????????????????????????????????????? | | +????????????????????+?????????????????? | | +????????????????????+?????????????????? | | # ## #??????????????????????????????????????? | | # ## #??????????????????????????????????????? | | ^ "??????????????????????????????????????? | | "??????????????????????????????????????? | | "??????????????????????????????????????? | +----------------------------------------------------+ Best States ------------- Heat Dissipation 56 Energy Generation 27 Energy Capacity 290 Matter Stores 300 Matter Capacity 300 Sight Range 16 Robot Scan Range 15 Terrain Scan Density 210 ECM Strength 1 Additional Mass Support 9 Armor Coverage 150 Resistance: TH 10 Propulsion Shielding 66 Evasion (%) 64 Offensive Hacking 20 Item Schematics ----------------- Weight Redist. System | -8/Materials | Hacked Imp. Flight Unit | -8/Materials | Hacked Imp. Focal Shield | -7/Factory | Hacked Mic. Fission Core | -7/Factory | Hacked Robot Schematics ------------------ Y-54 Guardian | -7/Factory | Hacked Fabricated ------------ R-06 Scavenger | x2 | -6/Factory | Preloaded Alien Tech Used ----------------- None Achievements -------------- None Challenges ------------ None Game ------ Seed ClaymoresCloakingBiocell Manual? 0 Play Time 00:55:53 Cumulative 189.3 hours Start 2024.08.17 @ 04:43:30 End 2024.08.17 @ 05:40:51 Sessions 1 Manual Loads 0 Difficulty Rogue Special Mode None Game No. 143 Rogue 110 Adventurer 0 Explorer 33 Win Type - Total 4 Types 4/0/0/0/0/0/0/0/0 Lore% 36 Gallery% 58 Achievement% 58 Wizard Run 0 Options --------- Layout 1 ASCII 1 Keyboard 1 Movement Vi Keybinds 0 Fullscreen 1 Font 24/Terminus Map View 50x40 Zoom Use 0% Tactical HUD 1 Map Filters NONE Filters LOW_CONTRAST(47,30,31) Steam 1 RUN: 838b0b7a-069e-4318-b9f0-27da4c095ef7